[Event "Early-Titled-Tuesday-Blitz-February-20-2024"]
[Site "Chess.com"]
[Date "2024.02.20"]
[Round "10"]
[White "Felix-Rose"]
[Black "C_K_G"]
[Result "0-1"]
[WhiteElo "2268"]
[BlackElo "2181"]
[TimeControl "180+1"]
[EndTime "9:59:19 PST"]
[Termination "C_K_G won by resignation"]

1. d4 {[%clk 0:03:00.9]} 1... d5 {[%clk 0:02:53.5]} 2. c4 {[%clk 0:03:00.3]}
2... e6 {[%clk 0:02:54.1]} 3. Nc3 {[%clk 0:02:59.6]} 3... Nf6 {[%clk 0:02:54.7]}
4. cxd5 {[%clk 0:03:00]} 4... exd5 {[%clk 0:02:54.6]} 5. Bg5 {[%clk 0:03:00]}
5... Be7 {[%clk 0:02:55.3]} 6. e3 {[%clk 0:03:00.2]} 6... a6 {[%clk 0:02:55.2]}
7. Bd3 {[%clk 0:03:00.4]} 7... O-O {[%clk 0:02:55.8]} 8. Nge2 {[%clk 0:02:59.4]}
8... h6 {[%clk 0:02:55.9]} 9. Bh4 {[%clk 0:02:56.2]} 9... b6 {[%clk 0:02:56.5]}
10. O-O {[%clk 0:02:54.1]} 10... Bb7 {[%clk 0:02:57]} 11. f3 {[%clk 0:02:52.3]}
11... Nbd7 {[%clk 0:02:56.4]} 12. Qd2 {[%clk 0:02:49.1]} 12... Re8 {[%clk
0:02:56]} 13. Rad1 {[%clk 0:02:47.6]} 13... c5 {[%clk 0:02:48.5]} 14. Bb1 {[%clk
0:02:46.8]} 14... c4 {[%clk 0:02:46.3]} 15. Bf2 {[%clk 0:02:35]} 15... b5 {[%clk
0:02:46.1]} 16. a3 {[%clk 0:02:28.9]} 16... b4 {[%clk 0:02:44.9]} 17. axb4
{[%clk 0:02:28.6]} 17... Bxb4 {[%clk 0:02:45.8]} 18. h3 {[%clk 0:02:28.8]} 18...
Nf8 {[%clk 0:02:23]} 19. Ng3 {[%clk 0:02:21.5]} 19... g6 {[%clk 0:02:20.2]} 20.
Rfe1 {[%clk 0:02:07]} 20... Ne6 {[%clk 0:02:04.2]} 21. e4 {[%clk 0:02:01.5]}
21... dxe4 {[%clk 0:01:55.6]} 22. fxe4 {[%clk 0:01:59.1]} 22... Ng5 {[%clk
0:01:52.3]} 23. d5 {[%clk 0:01:36.7]} 23... Qd7 {[%clk 0:01:33.3]} 24. Qd4
{[%clk 0:01:04.8]} 24... Nfh7 {[%clk 0:00:49.8]} 25. Qxc4 {[%clk 0:00:58.4]}
25... Bd6 {[%clk 0:00:47.6]} 26. Qd4 {[%clk 0:00:33.2]} 26... Be5 {[%clk
0:00:46.5]} 27. Qd2 {[%clk 0:00:30.3]} 27... Qd6 {[%clk 0:00:40.9]} 28. Nf1
{[%clk 0:00:22]} 28... Nxh3+ {[%clk 0:00:39.5]} 29. gxh3 {[%clk 0:00:19.2]}
29... Ng5 {[%clk 0:00:40.4]} 30. Kg2 {[%clk 0:00:18]} 30... Qf6 {[%clk
0:00:35.1]} 31. Qe3 {[%clk 0:00:12.9]} 31... Bf4 {[%clk 0:00:31.7]} 32. Qd4
{[%clk 0:00:12.8]} 32... Be5 {[%clk 0:00:31.3]} 33. Qd3 {[%clk 0:00:13.3]} 33...
a5 {[%clk 0:00:21.6]} 34. h4 {[%clk 0:00:13.7]} 34... Nh7 {[%clk 0:00:20.2]} 35.
Qf3 {[%clk 0:00:14.2]} 35... Qe7 {[%clk 0:00:20]} 36. Bd4 {[%clk 0:00:11.7]}
36... Bxd4 {[%clk 0:00:17.4]} 37. Rxd4 {[%clk 0:00:12.6]} 37... Qxh4 {[%clk
0:00:16.9]} 38. Red1 {[%clk 0:00:13.3]} 38... Re5 {[%clk 0:00:14.1]} 39. Ng3
{[%clk 0:00:09.7]} 39... Ng5 {[%clk 0:00:12.3]} 40. Qe3 {[%clk 0:00:08.1]} 40...
Qh3+ {[%clk 0:00:11.7]} 41. Kf2 {[%clk 0:00:08.8]} 41... Qh2+ {[%clk 0:00:11.2]}
42. Ke1 {[%clk 0:00:08.1]} 42... Rae8 {[%clk 0:00:09.2]} 43. R4d2 {[%clk
0:00:06.6]} 43... Qh3 {[%clk 0:00:07.2]} 44. Re2 {[%clk 0:00:05.6]} 44... Ba6
{[%clk 0:00:04.2]} 45. Bd3 {[%clk 0:00:06]} 45... Bxd3 {[%clk 0:00:03.5]} 46.
Rxd3 {[%clk 0:00:06.9]} 46... h5 {[%clk 0:00:03.4]} 47. Nf1 {[%clk 0:00:06.8]}
47... Qh4+ {[%clk 0:00:02.7]} 48. Qf2 {[%clk 0:00:06]} 48... Qg4 {[%clk
0:00:01.5]} 49. Qf3 {[%clk 0:00:05.2]} 49... Nxf3+ {[%clk 0:00:01.1]} 50. Rxf3
{[%clk 0:00:05.8]} 50... Qxf3 {[%clk 0:00:01.6]} 51. Re3 {[%clk 0:00:06.4]}
51... Rxe4 {[%clk 0:00:01.8]} 52. Rxe4 {[%clk 0:00:05.9]} 52... Rxe4+ {[%clk
0:00:02.7]} 53. Nxe4 {[%clk 0:00:06.4]} 53... Qxe4+ {[%clk 0:00:03.6]} 54. Kd2
{[%clk 0:00:07]} 54... Qxd5+ {[%clk 0:00:04.1]} 55. Ke2 {[%clk 0:00:07.4]} 55...
Qb3 {[%clk 0:00:03.8]} 56. Ne3 {[%clk 0:00:08.3]} 56... Qxb2+ {[%clk 0:00:04.3]}
57. Kf3 {[%clk 0:00:09.2]} 57... Qc3 {[%clk 0:00:04.2]} 58. Ke4 {[%clk
0:00:09.4]} 58... Qxe3+ {[%clk 0:00:05.1]} 59. Kd5 {[%clk 0:00:10.3]} 59... a4
{[%clk 0:00:06]} 60. Kd6 {[%clk 0:00:10.4]} 60... a3 {[%clk 0:00:06.9]} 61. Kd7
{[%clk 0:00:10.9]} 61... a2 {[%clk 0:00:07.2]} 62. Kd8 {[%clk 0:00:11.8]} 0-1

[Event "Early-Titled-Tuesday-Blitz-February-20-2024"]
[Site "Chess.com"]
[Date "2024.02.20"]
[Round "10"]
[White "Brave_spirit12"]
[Black "Anton_Demchenko"]
[Result "0-1"]
[WhiteElo "2731"]
[BlackElo "2907"]
[TimeControl "180+1"]
[EndTime "9:59:31 PST"]
[Termination "Anton_Demchenko won by resignation"]

1. e4 {[%clk 0:03:00.9]} 1... e5 {[%clk 0:03:00.3]} 2. Nf3 {[%clk 0:03:00.6]}
2... Nc6 {[%clk 0:03:00.9]} 3. d4 {[%clk 0:02:59.3]} 3... exd4 {[%clk 0:03:01]}
4. c3 {[%clk 0:02:59.2]} 4... d5 {[%clk 0:03:00.5]} 5. exd5 {[%clk 0:02:58.1]}
5... Qxd5 {[%clk 0:03:01.4]} 6. cxd4 {[%clk 0:02:58.8]} 6... Bg4 {[%clk
0:03:00.5]} 7. Be2 {[%clk 0:02:57.1]} 7... Bb4+ {[%clk 0:03:00.6]} 8. Nc3 {[%clk
0:02:56.6]} 8... Bxf3 {[%clk 0:03:00.2]} 9. Bxf3 {[%clk 0:02:56.9]} 9... Qc4
{[%clk 0:03:00.9]} 10. Bxc6+ {[%clk 0:02:57.6]} 10... bxc6 {[%clk 0:03:00.6]}
11. Qe2+ {[%clk 0:02:57.8]} 11... Qxe2+ {[%clk 0:03:00.2]} 12. Kxe2 {[%clk
0:02:58.7]} 12... O-O-O {[%clk 0:02:59.5]} 13. Be3 {[%clk 0:02:59.3]} 13... Ne7
{[%clk 0:02:52.2]} 14. a3 {[%clk 0:02:58.7]} 14... Ba5 {[%clk 0:02:43.1]} 15. b4
{[%clk 0:02:58.4]} 15... Bb6 {[%clk 0:02:43]} 16. Rhd1 {[%clk 0:02:53.4]} 16...
Rhe8 {[%clk 0:02:40.8]} 17. Kd3 {[%clk 0:02:47.2]} 17... Nf5 {[%clk 0:02:28.1]}
18. Ne2 {[%clk 0:02:46.5]} 18... Rd7 {[%clk 0:02:25.1]} 19. Rac1 {[%clk
0:02:45.1]} 19... Nxe3 {[%clk 0:02:15.7]} 20. fxe3 {[%clk 0:02:42.9]} 20... Rde7
{[%clk 0:02:16.5]} 21. Nc3 {[%clk 0:02:35.7]} 21... Rxe3+ {[%clk 0:02:16.7]} 22.
Kc4 {[%clk 0:02:36.3]} 22... f5 {[%clk 0:01:56]} 23. d5 {[%clk 0:02:29.4]} 23...
cxd5+ {[%clk 0:01:47.4]} 24. Nxd5 {[%clk 0:02:30.3]} 24... Rxa3 {[%clk
0:01:39.8]} 25. Re1 {[%clk 0:02:22.9]} 25... Re4+ {[%clk 0:01:30.8]} 26. Kb5
{[%clk 0:02:05.7]} 26... Kb7 {[%clk 0:01:30.6]} 27. Rxe4 {[%clk 0:01:38.4]}
27... fxe4 {[%clk 0:01:30.8]} 28. Nc3 {[%clk 0:01:39.1]} 28... e3 {[%clk
0:01:16.4]} 29. Kc4 {[%clk 0:01:38.9]} 29... a5 {[%clk 0:00:42.3]} 30. bxa5
{[%clk 0:01:33.2]} 30... Rxa5 {[%clk 0:00:38.5]} 31. Rc2 {[%clk 0:01:29.7]}
31... Rf5 {[%clk 0:00:37.6]} 32. Ne4 {[%clk 0:01:23.6]} 32... Kc6 {[%clk
0:00:29.9]} 33. Kd3+ {[%clk 0:01:20.4]} 33... Kd7 {[%clk 0:00:30.2]} 34. Re2
{[%clk 0:01:14]} 34... Rd5+ {[%clk 0:00:29.4]} 35. Kc2 {[%clk 0:01:14]} 35...
Ke6 {[%clk 0:00:27.1]} 36. Nc3 {[%clk 0:01:12.5]} 36... Rd2+ {[%clk 0:00:22.6]}
37. Rxd2 {[%clk 0:01:12.5]} 37... exd2 {[%clk 0:00:23.5]} 38. Kd3 {[%clk
0:01:07.5]} 38... Ba5 {[%clk 0:00:21.4]} 39. Nd1 {[%clk 0:01:07.6]} 39... Ke5
{[%clk 0:00:19.5]} 40. Ne3 {[%clk 0:01:05.7]} 40... c6 {[%clk 0:00:08.9]} 41. h4
{[%clk 0:01:00.1]} 41... Kf4 {[%clk 0:00:08]} 42. h5 {[%clk 0:00:56.2]} 42...
Bb4 {[%clk 0:00:05.1]} 43. Ke2 {[%clk 0:00:54.1]} 43... Ke4 {[%clk 0:00:04.4]}
44. g3 {[%clk 0:00:50.9]} 44... c5 {[%clk 0:00:04.6]} 45. Nc4 {[%clk 0:00:48.9]}
45... Kd4 {[%clk 0:00:04.3]} 46. Ne3 {[%clk 0:00:46.4]} 46... c4 {[%clk
0:00:03.1]} 47. g4 {[%clk 0:00:44.8]} 47... c3 {[%clk 0:00:02.9]} 48. Nc2+
{[%clk 0:00:42.6]} 48... Kc4 {[%clk 0:00:03.1]} 49. Na1 {[%clk 0:00:36.4]} 49...
Bc5 {[%clk 0:00:03.2]} 50. g5 {[%clk 0:00:30]} 50... Be7 {[%clk 0:00:03.2]} 51.
g6 {[%clk 0:00:29]} 51... hxg6 {[%clk 0:00:04.1]} 52. hxg6 {[%clk 0:00:29.3]}
52... Bf6 {[%clk 0:00:05]} 53. Kd1 {[%clk 0:00:21.5]} 53... Kd3 {[%clk
0:00:04.3]} 54. Nc2 {[%clk 0:00:21.9]} 54... Ke4 {[%clk 0:00:05.1]} 55. Ke2
{[%clk 0:00:20.4]} 55... Kf5 {[%clk 0:00:05.9]} 56. Ne3+ {[%clk 0:00:20.9]}
56... Kxg6 {[%clk 0:00:06.6]} 57. Kd1 {[%clk 0:00:21.6]} 57... Kg5 {[%clk
0:00:05.8]} 58. Nd5 {[%clk 0:00:21.8]} 58... Kf5 {[%clk 0:00:05.4]} 59. Ne3+
{[%clk 0:00:22]} 59... Ke4 {[%clk 0:00:05.5]} 60. Ng4 {[%clk 0:00:22]} 60... Bd4
{[%clk 0:00:05.7]} 61. Ke2 {[%clk 0:00:17.9]} 61... g5 {[%clk 0:00:04.7]} 62.
Nh6 {[%clk 0:00:17.2]} 62... Kf4 {[%clk 0:00:04.7]} 63. Ng8 {[%clk 0:00:16.8]}
63... g4 {[%clk 0:00:05.3]} 64. Ne7 {[%clk 0:00:17.6]} 64... g3 {[%clk
0:00:04.7]} 65. Ng6+ {[%clk 0:00:17.7]} 65... Ke4 {[%clk 0:00:04.9]} 66. Nh4
{[%clk 0:00:18.2]} 66... Bf6 {[%clk 0:00:03.9]} 67. Ng2 {[%clk 0:00:18.5]} 67...
Bg5 {[%clk 0:00:04.6]} 68. Kd1 {[%clk 0:00:18.1]} 68... Kf3 {[%clk 0:00:05]} 0-1

[Event "Early-Titled-Tuesday-Blitz-February-20-2024"]
[Site "Chess.com"]
[Date "2024.02.20"]
[Round "10"]
[White "FaustinoOro"]
[Black "mr_gustavo"]
[Result "1-0"]
[WhiteElo "2907"]
[BlackElo "2747"]
[TimeControl "180+1"]
[EndTime "9:59:33 PST"]
[Termination "FaustinoOro won on time"]

1. e4 {[%clk 0:03:00.9]} 1... c5 {[%clk 0:02:56.5]} 2. Nf3 {[%clk 0:02:59.3]}
2... d6 {[%clk 0:02:56.6]} 3. d4 {[%clk 0:02:54.8]} 3... cxd4 {[%clk 0:02:57]}
4. Nxd4 {[%clk 0:02:55.7]} 4... Nf6 {[%clk 0:02:57.5]} 5. Nc3 {[%clk 0:02:55.5]}
5... a6 {[%clk 0:02:58.1]} 6. Be2 {[%clk 0:02:55.2]} 6... e5 {[%clk 0:02:57.7]}
7. Nb3 {[%clk 0:02:54.9]} 7... Be7 {[%clk 0:02:58.4]} 8. O-O {[%clk 0:02:54.6]}
8... O-O {[%clk 0:02:58.6]} 9. Be3 {[%clk 0:02:54.4]} 9... Be6 {[%clk
0:02:58.3]} 10. Qd3 {[%clk 0:02:53.4]} 10... Nc6 {[%clk 0:02:34.2]} 11. a3
{[%clk 0:02:45]} 11... Na5 {[%clk 0:02:33.2]} 12. Nxa5 {[%clk 0:02:20.3]} 12...
Qxa5 {[%clk 0:02:34.1]} 13. Rad1 {[%clk 0:02:18.9]} 13... Rac8 {[%clk
0:02:26.6]} 14. f3 {[%clk 0:02:04.7]} 14... Rfd8 {[%clk 0:02:03.1]} 15. Qd2
{[%clk 0:02:03.6]} 15... Rxc3 {[%clk 0:01:47.4]} 16. Qxc3 {[%clk 0:01:44.5]}
16... Qxc3 {[%clk 0:01:46.5]} 17. bxc3 {[%clk 0:01:45.4]} 17... d5 {[%clk
0:01:47.2]} 18. exd5 {[%clk 0:01:21.2]} 18... Nxd5 {[%clk 0:01:44.7]} 19. Bf2
{[%clk 0:01:13.9]} 19... Nxc3 {[%clk 0:01:36.3]} 20. Rxd8+ {[%clk 0:01:13.6]}
20... Bxd8 {[%clk 0:01:37.2]} 21. Bd3 {[%clk 0:01:14.1]} 21... Be7 {[%clk
0:01:34.5]} 22. Be1 {[%clk 0:01:09.3]} 22... Nd5 {[%clk 0:01:12.2]} 23. a4
{[%clk 0:01:03.1]} 23... Nf4 {[%clk 0:01:08.2]} 24. Bf2 {[%clk 0:00:53.6]} 24...
Nxd3 {[%clk 0:01:02]} 25. cxd3 {[%clk 0:00:54.5]} 25... Bd7 {[%clk 0:00:58.7]}
26. a5 {[%clk 0:00:51.3]} 26... Bc6 {[%clk 0:00:51]} 27. d4 {[%clk 0:00:43.3]}
27... exd4 {[%clk 0:00:49.3]} 28. Bxd4 {[%clk 0:00:44.2]} 28... f6 {[%clk
0:00:49.7]} 29. Kf2 {[%clk 0:00:42.7]} 29... Kf7 {[%clk 0:00:50.2]} 30. Bb6
{[%clk 0:00:36.1]} 30... Bd6 {[%clk 0:00:45]} 31. h4 {[%clk 0:00:34.3]} 31... h5
{[%clk 0:00:44.6]} 32. Rd1 {[%clk 0:00:33.8]} 32... Ke6 {[%clk 0:00:43.9]} 33.
g4 {[%clk 0:00:30.6]} 33... hxg4 {[%clk 0:00:40.9]} 34. fxg4 {[%clk 0:00:31.5]}
34... Be5 {[%clk 0:00:39.1]} 35. h5 {[%clk 0:00:27]} 35... Bf4 {[%clk
0:00:32.1]} 36. Be3 {[%clk 0:00:23.5]} 36... Be5 {[%clk 0:00:31]} 37. Bb6 {[%clk
0:00:15.5]} 37... Bf4 {[%clk 0:00:29.1]} 38. Be3 {[%clk 0:00:15.6]} 38... Be5
{[%clk 0:00:29.5]} 39. Re1 {[%clk 0:00:09.5]} 39... Kd5 {[%clk 0:00:21.4]} 40.
Rd1+ {[%clk 0:00:09.4]} 40... Ke4 {[%clk 0:00:17.9]} 41. Re1 {[%clk 0:00:08.6]}
41... Kd5 {[%clk 0:00:17.6]} 42. g5 {[%clk 0:00:07]} 42... fxg5 {[%clk
0:00:16.4]} 43. Bxg5 {[%clk 0:00:07.9]} 43... Kd6 {[%clk 0:00:08]} 44. Rd1+
{[%clk 0:00:04]} 44... Ke6 {[%clk 0:00:08.1]} 45. Be3 {[%clk 0:00:03]} 45... Kf5
{[%clk 0:00:06.9]} 46. Rg1 {[%clk 0:00:03.7]} 46... Bc3 {[%clk 0:00:05.7]} 47.
Rg5+ {[%clk 0:00:03.8]} 47... Kf6 {[%clk 0:00:05.2]} 48. Rc5 {[%clk 0:00:03.6]}
48... Be5 {[%clk 0:00:04.1]} 49. Bg5+ {[%clk 0:00:03.1]} 49... Ke6 {[%clk
0:00:03.1]} 50. Be3 {[%clk 0:00:02.6]} 50... Bd6 {[%clk 0:00:03.5]} 51. Rg5
{[%clk 0:00:02.4]} 51... Be5 {[%clk 0:00:02.9]} 52. Rg6+ {[%clk 0:00:02.5]}
52... Kf7 {[%clk 0:00:02.3]} 53. Bg5 {[%clk 0:00:02.3]} 53... Bd4+ {[%clk
0:00:02.3]} 54. Be3 {[%clk 0:00:02.4]} 54... Bc3 {[%clk 0:00:02.2]} 55. Rg5
{[%clk 0:00:02.7]} 55... Bf6 {[%clk 0:00:01.9]} 56. Rc5 {[%clk 0:00:02.8]} 56...
Ke6 {[%clk 0:00:02.3]} 57. Rc1 {[%clk 0:00:03]} 57... Be5 {[%clk 0:00:02.2]} 58.
Bb6 {[%clk 0:00:03.5]} 58... Be8 {[%clk 0:00:02]} 59. Re1 {[%clk 0:00:03.8]}
59... Kf5 {[%clk 0:00:01.7]} 60. Bc7 {[%clk 0:00:03.2]} 1-0

[Event "Early-Titled-Tuesday-Blitz-February-20-2024"]
[Site "Chess.com"]
[Date "2024.02.20"]
[Round "10"]
[White "NikitaShnadrygin"]
[Black "JonSnowNW1"]
[Result "1-0"]
[WhiteElo "2689"]
[BlackElo "2501"]
[TimeControl "180+1"]
[EndTime "9:59:33 PST"]
[Termination "NikitaShnadrygin won by resignation"]

1. e4 {[%clk 0:02:58.9]} 1... c5 {[%clk 0:02:59.8]} 2. Nf3 {[%clk 0:02:58.6]}
2... d6 {[%clk 0:03:00.1]} 3. d4 {[%clk 0:02:58.6]} 3... cxd4 {[%clk 0:03:01]}
4. Nxd4 {[%clk 0:02:58.7]} 4... Nf6 {[%clk 0:03:01.7]} 5. Nc3 {[%clk 0:02:59]}
5... a6 {[%clk 0:03:02.2]} 6. f3 {[%clk 0:02:58.7]} 6... e5 {[%clk 0:03:02]} 7.
Nb3 {[%clk 0:02:58.8]} 7... Be7 {[%clk 0:03:02.5]} 8. Be3 {[%clk 0:02:58.1]}
8... Be6 {[%clk 0:03:02.8]} 9. Qd2 {[%clk 0:02:58]} 9... Nbd7 {[%clk 0:03:03.2]}
10. g4 {[%clk 0:02:57]} 10... Nb6 {[%clk 0:02:31.1]} 11. g5 {[%clk 0:02:47.9]}
11... Nfd7 {[%clk 0:02:30.8]} 12. Na5 {[%clk 0:02:39.5]} 12... Qc7 {[%clk
0:02:25.8]} 13. h4 {[%clk 0:02:31.6]} 13... Rd8 {[%clk 0:02:17.6]} 14. O-O-O
{[%clk 0:02:21.1]} 14... Nc5 {[%clk 0:02:10.2]} 15. Nd5 {[%clk 0:01:29.3]} 15...
Nxd5 {[%clk 0:02:04.8]} 16. exd5 {[%clk 0:01:30.2]} 16... Bf5 {[%clk 0:02:05.1]}
17. Nb3 {[%clk 0:01:10.1]} 17... Nxb3+ {[%clk 0:02:02.8]} 18. axb3 {[%clk
0:01:10.1]} 18... Rc8 {[%clk 0:02:01.5]} 19. Bd3 {[%clk 0:01:07.6]} 19... Bxd3
{[%clk 0:02:00.4]} 20. Qxd3 {[%clk 0:01:08.5]} 20... Qa5 {[%clk 0:02:00.2]} 21.
Kb1 {[%clk 0:01:08.7]} 21... Qb4 {[%clk 0:01:34.5]} 22. h5 {[%clk 0:01:03.8]}
22... a5 {[%clk 0:01:31.1]} 23. g6 {[%clk 0:01:02.2]} 23... fxg6 {[%clk
0:01:28.1]} 24. hxg6 {[%clk 0:01:03.1]} 24... h6 {[%clk 0:01:26.7]} 25. Bxh6
{[%clk 0:00:46.5]} 25... gxh6 {[%clk 0:01:20.7]} 26. g7 {[%clk 0:00:46.4]} 26...
Rg8 {[%clk 0:01:19.9]} 27. Qg6+ {[%clk 0:00:39.4]} 27... Kd8 {[%clk 0:01:17.1]}
28. Qf7 {[%clk 0:00:34.6]} 28... Kc7 {[%clk 0:00:51.5]} 29. Qxe7+ {[%clk
0:00:32.4]} 29... Kb8 {[%clk 0:00:50.7]} 30. Rxh6 {[%clk 0:00:33]} 30... Rgd8
{[%clk 0:00:48.1]} 31. g8=Q {[%clk 0:00:26.7]} 31... Rxg8 {[%clk 0:00:45.9]} 32.
Qxd6+ {[%clk 0:00:26.7]} 32... Qxd6 {[%clk 0:00:45.2]} 33. Rxd6 {[%clk 0:00:27]}
33... Rg2 {[%clk 0:00:44.9]} 34. Rc1 {[%clk 0:00:13.2]} 34... Rf2 {[%clk
0:00:45.2]} 35. Re6 {[%clk 0:00:13.3]} 35... Rxf3 {[%clk 0:00:45.4]} 36. Rxe5
{[%clk 0:00:13.7]} 36... Kc7 {[%clk 0:00:43.7]} 37. Rd1 {[%clk 0:00:11.7]} 37...
Kd6 {[%clk 0:00:43.5]} 38. Re6+ {[%clk 0:00:12]} 38... Kd7 {[%clk 0:00:43.8]}
39. Re2 {[%clk 0:00:12.6]} 39... Rh8 {[%clk 0:00:41.1]} 40. d6 {[%clk
0:00:11.2]} 40... Rh7 {[%clk 0:00:41.6]} 41. Re5 {[%clk 0:00:10]} 41... b6
{[%clk 0:00:38.1]} 42. Rd2 {[%clk 0:00:07.1]} 42... Rf1+ {[%clk 0:00:37]} 43.
Ka2 {[%clk 0:00:07.5]} 43... Rhh1 {[%clk 0:00:37.4]} 44. b4 {[%clk 0:00:07.4]}
44... a4 {[%clk 0:00:28.4]} 45. b3 {[%clk 0:00:07.7]} 45... Ra1+ {[%clk
0:00:27.8]} 46. Kb2 {[%clk 0:00:07.9]} 46... a3+ {[%clk 0:00:28.7]} 47. Kc3
{[%clk 0:00:08.3]} 47... a2 {[%clk 0:00:29.2]} 48. Re7+ {[%clk 0:00:08.2]} 48...
Kd8 {[%clk 0:00:28.7]} 49. Ra7 {[%clk 0:00:07.4]} 49... Rh3+ {[%clk 0:00:26.1]}
50. Kc4 {[%clk 0:00:07.8]} 50... Rh5 {[%clk 0:00:10.8]} 51. d7 {[%clk
0:00:04.3]} 51... b5+ {[%clk 0:00:10.2]} 52. Kc3 {[%clk 0:00:04.9]} 52... Rh3+
{[%clk 0:00:04.5]} 53. Kb2 {[%clk 0:00:05.4]} 53... Rd1 {[%clk 0:00:03.4]} 54.
Ra8+ {[%clk 0:00:05.3]} 54... Ke7 {[%clk 0:00:02.9]} 55. d8=Q+ {[%clk
0:00:06.2]} 55... Kf7 {[%clk 0:00:03.1]} 56. Qd7+ {[%clk 0:00:06.3]} 56... Kf6
{[%clk 0:00:03.1]} 57. Qd6+ {[%clk 0:00:06.8]} 1-0

[Event "Early-Titled-Tuesday-Blitz-February-20-2024"]
[Site "Chess.com"]
[Date "2024.02.20"]
[Round "10"]
[White "sergoy"]
[Black "xamax2000"]
[Result "1-0"]
[WhiteElo "3004"]
[BlackElo "2898"]
[TimeControl "180+1"]
[EndTime "9:59:40 PST"]
[Termination "sergoy won on time"]

1. d4 {[%clk 0:03:00.9]} 1... d5 {[%clk 0:02:59.5]} 2. c4 {[%clk 0:03:01.4]}
2... e6 {[%clk 0:02:59.8]} 3. Nf3 {[%clk 0:03:02.1]} 3... Nf6 {[%clk 0:02:59.4]}
4. Nc3 {[%clk 0:03:02.7]} 4... Nbd7 {[%clk 0:02:58.4]} 5. Bg5 {[%clk 0:02:55.5]}
5... h6 {[%clk 0:02:58.6]} 6. Bh4 {[%clk 0:02:55.3]} 6... Be7 {[%clk 0:02:59.2]}
7. e3 {[%clk 0:02:55.5]} 7... O-O {[%clk 0:02:59.9]} 8. Qc2 {[%clk 0:02:48.2]}
8... c6 {[%clk 0:02:59.7]} 9. cxd5 {[%clk 0:02:46.4]} 9... exd5 {[%clk
0:02:56.1]} 10. Bd3 {[%clk 0:02:46.3]} 10... Re8 {[%clk 0:02:56.7]} 11. O-O
{[%clk 0:02:45.4]} 11... Ne4 {[%clk 0:02:50.4]} 12. Bxe7 {[%clk 0:02:45.5]}
12... Qxe7 {[%clk 0:02:50.3]} 13. Bxe4 {[%clk 0:02:46.1]} 13... dxe4 {[%clk
0:02:50.5]} 14. Nd2 {[%clk 0:02:46.8]} 14... Nf6 {[%clk 0:02:48.9]} 15. Qa4
{[%clk 0:02:44.7]} 15... a5 {[%clk 0:02:33.4]} 16. Qa3 {[%clk 0:02:42.7]} 16...
Qb4 {[%clk 0:02:26]} 17. Rfd1 {[%clk 0:02:26.8]} 17... b6 {[%clk 0:02:13.7]} 18.
Rac1 {[%clk 0:01:52.3]} 18... Ba6 {[%clk 0:02:08.3]} 19. Qb3 {[%clk 0:01:20.7]}
19... Bd3 {[%clk 0:01:38.3]} 20. a3 {[%clk 0:01:07]} 20... Qxb3 {[%clk 0:01:35]}
21. Nxb3 {[%clk 0:01:07.9]} 21... a4 {[%clk 0:01:35.2]} 22. Na1 {[%clk
0:01:01.9]} 22... c5 {[%clk 0:01:32.9]} 23. Nc2 {[%clk 0:00:56.4]} 23... Red8
{[%clk 0:01:22.7]} 24. f3 {[%clk 0:00:29.1]} 24... Kf8 {[%clk 0:00:45]} 25. Kf2
{[%clk 0:00:28.9]} 25... Ke7 {[%clk 0:00:43.4]} 26. h3 {[%clk 0:00:23.1]} 26...
h5 {[%clk 0:00:40.3]} 27. dxc5 {[%clk 0:00:18.5]} 27... bxc5 {[%clk 0:00:37.9]}
28. Ne1 {[%clk 0:00:19]} 28... Rdb8 {[%clk 0:00:13.7]} 29. Rd2 {[%clk
0:00:09.9]} 29... c4 {[%clk 0:00:14]} 30. fxe4 {[%clk 0:00:09]} 30... Bxe4
{[%clk 0:00:12.7]} 31. Nf3 {[%clk 0:00:09.5]} 31... Bxf3 {[%clk 0:00:10.3]} 32.
gxf3 {[%clk 0:00:09.8]} 32... Rb3 {[%clk 0:00:10.2]} 33. Rcd1 {[%clk 0:00:08.8]}
33... h4 {[%clk 0:00:06.3]} 34. e4 {[%clk 0:00:09.1]} 34... g6 {[%clk 0:00:06]}
35. e5 {[%clk 0:00:08]} 35... Nh5 {[%clk 0:00:06.5]} 36. Ke3 {[%clk 0:00:08.3]}
36... Kf8 {[%clk 0:00:06.1]} 37. Kd4 {[%clk 0:00:04.8]} 37... Rc8 {[%clk
0:00:04.7]} 38. Ke4 {[%clk 0:00:03.8]} 38... Ng3+ {[%clk 0:00:04.8]} 39. Kf4
{[%clk 0:00:03.9]} 39... Kg7 {[%clk 0:00:04.8]} 40. Kg4 {[%clk 0:00:03.5]} 40...
Nf5 {[%clk 0:00:04.1]} 41. Kf4 {[%clk 0:00:02.5]} 41... Ra8 {[%clk 0:00:02.9]}
42. Re2 {[%clk 0:00:02.3]} 42... Ra7 {[%clk 0:00:02.5]} 43. Rd5 {[%clk
0:00:02.2]} 43... Ne7 {[%clk 0:00:02]} 44. Rd4 {[%clk 0:00:02.2]} 44... Nf5
{[%clk 0:00:02]} 45. Rxc4 {[%clk 0:00:02.5]} 45... Rd7 {[%clk 0:00:02.3]} 46. e6
{[%clk 0:00:02.3]} 46... fxe6 {[%clk 0:00:01.9]} 47. Rc6 {[%clk 0:00:02.7]}
47... Rd4+ {[%clk 0:00:01.7]} 48. Kg5 {[%clk 0:00:02]} 48... Rd3 {[%clk
0:00:02.2]} 49. Rc7+ {[%clk 0:00:02.1]} 49... Kf8 {[%clk 0:00:02.3]} 50. Rxe6
{[%clk 0:00:02.4]} 50... Rxf3 {[%clk 0:00:02.7]} 51. Ne4 {[%clk 0:00:02]} 51...
Rb5 {[%clk 0:00:02]} 52. Rc8+ {[%clk 0:00:01.6]} 52... Kf7 {[%clk 0:00:02.4]}
53. Rf6+ {[%clk 0:00:02.1]} 53... Ke7 {[%clk 0:00:02.8]} 54. Rc7+ {[%clk
0:00:02.6]} 54... Kd8 {[%clk 0:00:03.1]} 55. Rc5 {[%clk 0:00:03.1]} 55... Rxc5
{[%clk 0:00:02.7]} 56. Nxc5 {[%clk 0:00:04]} 56... Ke7 {[%clk 0:00:03.1]} 57.
Re6+ {[%clk 0:00:04]} 57... Kf7 {[%clk 0:00:03.3]} 58. Rf6+ {[%clk 0:00:04.1]}
58... Ke7 {[%clk 0:00:04]} 59. Rxg6 {[%clk 0:00:04.7]} 59... Nd4 {[%clk
0:00:03.8]} 60. Kxh4 {[%clk 0:00:03.5]} 60... Rf4+ {[%clk 0:00:04]} 61. Kg3
{[%clk 0:00:03.8]} 61... Rf2 {[%clk 0:00:04.9]} 62. Ne4 {[%clk 0:00:03]} 62...
Rxb2 {[%clk 0:00:04.3]} 63. h4 {[%clk 0:00:03.4]} 63... Rb3+ {[%clk 0:00:04]}
64. Kg4 {[%clk 0:00:04]} 64... Rxa3 {[%clk 0:00:04.7]} 65. h5 {[%clk 0:00:03.1]}
65... Re3 {[%clk 0:00:05.3]} 66. Kf4 {[%clk 0:00:02.8]} 66... Rf3+ {[%clk
0:00:04.9]} 67. Ke5 {[%clk 0:00:03.5]} 67... Ne2 {[%clk 0:00:02.3]} 68. Rg7+
{[%clk 0:00:04]} 68... Kf8 {[%clk 0:00:02]} 69. Ra7 {[%clk 0:00:04.7]} 69... Rh3
{[%clk 0:00:02.1]} 70. Nf6 {[%clk 0:00:04.7]} 1-0